[Event "7. Arber-Senioren-Cup 2019"]
[Site "Bodenmais"]
[Date "2019.08.02"]
[Round "7.22"]
[White "Zwetz, Anita"]
[Black "Supplieth, Peter"]
[Result "1-0"]
[ECO "D02"]
[WhiteElo "1828"]
[BlackElo "1880"]
[Annotator "NA"]
[PlyCount "61"]
[EventDate "2019.07.27"]
[EventType "swiss"]
[EventCountry "GER"]
[SourceTitle "playchess.com"]
[Source "ChessBase"]
[SourceQuality "1"]
[TimeControl "60/7800+30:0"]

1. d4 {[%emt 0:00:00]} d5 {[%emt 0:00:00]} 2. Nf3 {[%emt 0:00:00]} c6 {[%emt 0:00:00]} 3. c3 {[%emt 0:00:00]} Bf5 {[%emt 0:00:00]} 4. Nbd2 {[%emt 0:00:39]} Nf6 {[%emt 0:00:14]} 5. e3 {[%emt 0:00:38]} Nbd7 {[%emt 0:00:36]} 6. Be2 {[%emt 0:00:49]} h6 {[%emt 0:00:07]} 7. O-O {[%emt 0:02:52]} e6 {[%emt 0:00:07]} 8. c4 Bd6 {[%emt 0:01:11]} 9. c5 {[%emt 0:04:46]} Bc7 {[%emt 0:00:14]} 10. b4 {[%emt 0:03:35]} e5 {[%emt 0:02:15]} 11. dxe5 {[%emt 0:00:32]} Nxe5 {[%emt 0:00:10]} 12. Bb2 {[%emt 0:00:11]} Qe7 {[%emt 0:01:06]} 13. Nd4 {[%emt 0:01:21]} Bd3 {[%emt 0:08:41]} 14. Qb3 {[%emt 0:01:05]} Ne4 {[%emt 0:03:49]} 15. Nxe4 {[%emt 0:13:01]} Bxe4 {[%emt 0:00:11]} 16. f4 {[%emt 0:16:11]} Nd7 {[%emt 0:03:52]} 17. Nf3 {[%emt 0:02:38]} Rg8 {[%emt 0:04:48]} 18. Nd2 {[%emt 0:28:17]} f5 {[%emt 0:09:58]} 19. Nxe4 {[%emt 0:01:43]} Qxe4 {[%emt 0:05:50]} 20. Bh5+ {[%emt 0:04:12]} g6 {[%emt 0:00:36]} 21. Bf3 {[%emt 0:00:04]} Qe7 {[%emt 0:00:59]} 22. e4 {[%emt 0:01:03]} Bxf4 {[%emt 0:11:04]} 23. Rfe1 {[%emt 0:05:28]} O-O-O {[%emt 0:03:43]} 24. exd5 {[%emt 0:01:00]} Qh4 {[%emt 0:00:57]} 25. g3 {[%emt 0:11:56]} Bxg3 {[%emt 0:01:00]} 26. hxg3 {[%emt 0:00:00]} Qxg3+ {[%emt 0:00:11]} 27. Bg2 {[%emt 0:00:04]} Qh4 {[%emt 0:07:14]} 28. dxc6 {[%emt 0:00:50]} bxc6 {[%emt 0:00:58]} 29. Qe6 {[%emt 0:02:13]} Qxb4 {[%emt 0:03:40]} 30. Qxc6+ {[%emt 0:00:51]} Kb8 {[%emt 0:01:45]} 31. Rab1 1-0

[Event "7. Arber-Senioren-Cup 2019"]
[Site "Bodenmais"]
[Date "2019.08.02"]
[Round "7.23"]
[White "Loibl, Johann"]
[Black "Bauer, Werner"]
[Result "1-0"]
[ECO "B07"]
[WhiteElo "1760"]
[BlackElo "1881"]
[Annotator "NA"]
[PlyCount "81"]
[EventDate "2019.07.27"]
[EventType "swiss"]
[EventCountry "GER"]
[SourceTitle "playchess.com"]
[Source "ChessBase"]
[SourceQuality "1"]
[TimeControl "60/7800+30:0"]

1. e4 {[%emt 0:00:00]} d6 {[%emt 0:10:20]} 2. d4 {[%emt 0:00:00]} Nf6 {[%emt 0:00:12]} 3. Nc3 {[%emt 0:01:10]} e5 {[%emt 0:00:41]} 4. dxe5 {[%emt 0:00:47]} dxe5 {[%emt 0:00:06]} 5. Qxd8+ {[%emt 0:01:49]} Kxd8 {[%emt 0:00:01]} 6. Nf3 {[%emt 0:02:14]} Bd6 {[%emt 0:00:30]} 7. Bc4 {[%emt 0:06:09]} Ke7 {[%emt 0:00:29]} 8. Bg5 {[%emt 0:01:36]} c6 {[%emt 0:04:22]} 9. O-O-O {[%emt 0:03:50]} b5 {[%emt 0:06:06]} 10. Nxb5 {[%emt 0:03:57]} cxb5 {[%emt 0:00:26]} 11. Bd5 {[%emt 0:00:05]} Be6 {[%emt 0:04:22]} 12. Bxa8 {[%emt 0:01:15]} h6 {[%emt 0:02:26]} 13. Bxf6+ {[%emt 0:00:11]} gxf6 {[%emt 0:00:08]} 14. Bd5 {[%emt 0:05:30]} Bc5 {[%emt 0:03:42]} 15. Rd2 {[%emt 0:02:00]} Rg8 {[%emt 0:03:43]} 16. g3 {[%emt 0:07:39]} Bxd5 {[%emt 0:07:14]} 17. exd5 {[%emt 0:03:20]} Nd7 {[%emt 0:02:38]} 18. Nh4 {[%emt 0:03:51]} Rg5 {[%emt 0:00:59]} 19. Re1 {[%emt 0:05:40]} Kd6 {[%emt 0:01:05]} 20. Ng2 {[%emt 0:01:34]} Nb6 {[%emt 0:00:31]} 21. Ne3 {[%emt 0:02:56]} f5 {[%emt 0:01:11]} 22. h4 {[%emt 0:01:35]} Rh5 {[%emt 0:00:07]} 23. Ng2 {[%emt 0:08:57]} f6 {[%emt 0:10:15]} 24. c3 {[%emt 0:06:51]} Nc4 {[%emt 0:00:38]} 25. Rde2 {[%emt 0:02:45]} Kxd5 {[%emt 0:00:35]} 26. Rd1+ {[%emt 0:01:55]} Kc6 {[%emt 0:00:26]} 27. Ne3 {[%emt 0:05:32]} Nxe3 {[%emt 0:06:49]} 28. fxe3 {[%emt 0:00:09]} f4 {[%emt 0:02:51]} 29. exf4 {[%emt 0:01:05]} exf4 {[%emt 0:00:09]} 30. Re6+ {[%emt 0:01:55]} Kc7 {[%emt 0:00:14]} 31. gxf4 {[%emt 0:01:42]} Rxh4 {[%emt 0:00:29]} 32. f5 {[%emt 0:02:36]} Rh3 {[%emt 0:08:42]} 33. Rxf6 {[%emt 0:02:04]} Be3+ {[%emt 0:00:19]} 34. Kc2 {[%emt 0:01:30]} Rh2+ {[%emt 0:04:07]} 35. Kb3 {[%emt 0:01:40]} a5 {[%emt 0:04:32]} 36. a3 {[%emt 0:07:49]} a4+ {[%emt 0:01:27]} 37. Ka2 {[%emt 0:00:11]} Bg5 {[%emt 0:01:08]} 38. Rf7+ {[%emt 0:00:58]} Kc6 {[%emt 0:00:14]} 39. Rf1 {[%emt 0:00:34]} Kd6 {[%emt 0:04:40]} 40. Rb7 {[%emt 0:00:44]} Kc6 {[%emt 0:01:23]} 41. Rg7 {[%emt 0:01:16]} 1-0

[Event "7. Arber-Senioren-Cup 2019"]
[Site "Bodenmais"]
[Date "2019.08.02"]
[Round "7.24"]
[White "Meul, Willi"]
[Black "Riess, Michael"]
[Result "1-0"]
[ECO "D00"]
[WhiteElo "1904"]
[BlackElo "1686"]
[Annotator "NA"]
[PlyCount "45"]
[EventDate "2019.07.27"]
[EventType "swiss"]
[EventCountry "GER"]
[SourceTitle "playchess.com"]
[Source "ChessBase"]
[SourceQuality "1"]
[TimeControl "60/7800+30:0"]

1. d4 {[%emt 0:00:00]} d5 {[%emt 0:00:00]} 2. Bf4 {[%emt 0:00:00]} Nf6 {[%emt 0:00:05]} 3. e3 {[%emt 0:00:00]} Nc6 {[%emt 0:00:38]} 4. Nd2 {[%emt 0:01:49]} e6 {[%emt 0:02:07]} 5. Ngf3 {[%emt 0:00:14]} Bd6 {[%emt 0:02:43]} 6. Bg3 {[%emt 0:00:53]} O-O {[%emt 0:01:14]} 7. c3 {[%emt 0:03:12]} Re8 {[%emt 0:02:24]} 8. Ne5 {[%emt 0:00:29]} Bxe5 {[%emt 0:00:39]} 9. dxe5 {[%emt 0:00:31]} Nd7 {[%emt 0:01:18]} 10. f4 {[%emt 0:03:17]} Nf8 {[%emt 0:05:23]} 11. Bd3 {[%emt 0:02:24]} Ng6 {[%emt 0:03:10]} 12. Qg4 {[%emt 0:06:48]} Nce7 {[%emt 0:03:00]} 13. h4 {[%emt 0:06:13]} Nf5 {[%emt 0:03:30]} 14. Bf2 {[%emt 0:00:37]} h6 {[%emt 0:04:09]} 15. h5 {[%emt 0:01:14]} Nge7 {[%emt 0:00:32]} 16. Qh3 {[%emt 0:00:28]} Nc6 {[%emt 0:06:53]} 17. g4 {[%emt 0:02:34]} Nfe7 {[%emt 0:01:15]} 18. Bh4 {[%emt 0:02:37]} Qd7 {[%emt 0:00:35]} 19. g5 {[%emt 0:02:22]} Nf5 {[%emt 0:00:38]} 20. Bxf5 {[%emt 0:00:32]} exf5 {[%emt 0:00:11]} 21. gxh6 {[%emt 0:00:07]} gxh6 {[%emt 0:01:42]} 22. Qg3+ {[%emt 0:01:14]} Kf8 {[%emt 0:03:49]} 23. Bf6 {[%emt 0:00:09]} 1-0

[Event "7. Arber-Senioren-Cup 2019"]
[Site "Bodenmais"]
[Date "2019.08.02"]
[Round "7.25"]
[White "Wittkugel, Friedhelm"]
[Black "Pisz, Bretislav"]
[Result "1-0"]
[ECO "A83"]
[WhiteElo "1920"]
[BlackElo "1599"]
[Annotator "NA"]
[PlyCount "92"]
[EventDate "2019.07.27"]
[EventType "swiss"]
[EventCountry "GER"]
[SourceTitle "playchess.com"]
[Source "ChessBase"]
[SourceQuality "1"]
[TimeControl "60/7800+30:0"]

1. d4 {[%emt 0:00:00]} f5 {[%emt 0:00:00]} 2. e4 {[%emt 0:00:02]} fxe4 {[%emt 0:01:44]} 3. Nc3 {[%emt 0:00:11]} Nf6 {[%emt 0:01:42]} 4. Bg5 {[%emt 0:00:02]} e6 {[%emt 0:02:17]} 5. Nxe4 {[%emt 0:00:54]} Be7 {[%emt 0:00:02]} 6. Nxf6+ {[%emt 0:04:29]} Bxf6 {[%emt 0:00:03]} 7. Be3 {[%emt 0:00:15]} Qe7 {[%emt 0:04:14]} 8. c3 {[%emt 0:00:56]} b6 {[%emt 0:01:25]} 9. Qf3 {[%emt 0:05:11]} Nc6 {[%emt 0:00:58]} 10. Bd3 {[%emt 0:03:37]} Bb7 {[%emt 0:01:31]} 11. Be4 {[%emt 0:01:28]} O-O-O {[%emt 0:01:09]} 12. Ne2 {[%emt 0:01:39]} Rdf8 {[%emt 0:01:51]} 13. Qh5 {[%emt 0:03:39]} g6 {[%emt 0:05:53]} 14. Qb5 {[%emt 0:01:54]} d5 {[%emt 0:10:10]} 15. Bf3 {[%emt 0:02:02]} a6 {[%emt 0:01:20]} 16. Qd3 {[%emt 0:01:44]} Bg5 {[%emt 0:08:31]} 17. O-O-O {[%emt 0:09:26]} Bxe3+ {[%emt 0:10:32]} 18. Qxe3 {[%emt 0:00:43]} Na5 {[%emt 0:01:45]} 19. Kb1 {[%emt 0:02:42]} g5 {[%emt 0:05:40]} 20. Nc1 {[%emt 0:02:58]} Rf4 {[%emt 0:04:12]} 21. Nd3 {[%emt 0:01:04]} Nc4 {[%emt 0:02:06]} 22. Qe2 {[%emt 0:00:51]} Rf6 {[%emt 0:01:01]} 23. Rhe1 {[%emt 0:00:57]} h5 {[%emt 0:02:51]} 24. h3 {[%emt 0:00:01]} Rhh6 {[%emt 0:04:04]} 25. Bxh5 {[%emt 0:02:57]} a5 {[%emt 0:03:25]} 26. Bf3 {[%emt 0:02:58]} Qh7 {[%emt 0:04:22]} 27. Ka1 {[%emt 0:01:17]} Ba6 {[%emt 0:01:36]} 28. Ne5 {[%emt 0:03:53]} Kb7 {[%emt 0:02:28]} 29. Rc1 {[%emt 0:06:55]} a4 {[%emt 0:04:18]} 30. Ng4 {[%emt 0:02:49]} a3 {[%emt 0:03:57]} 31. b3 {[%emt 0:00:53]} Nb2 {[%emt 0:00:20]} 32. Nxf6 {[%emt 0:02:34]} Bxe2 {[%emt 0:01:56]} 33. Nxh7 {[%emt 0:00:37]} Bxf3 {[%emt 0:00:16]} 34. Nxg5 {[%emt 0:04:13]} Bxg2 {[%emt 0:02:29]} 35. Rxe6 {[%emt 0:01:07]} Rxe6 {[%emt 0:00:27]} 36. Nxe6 {[%emt 0:00:23]} Bxh3 {[%emt 0:00:45]} 37. Nf4 {[%emt 0:00:27]} Bf5 {[%emt 0:01:30]} 38. Nxd5 {[%emt 0:00:51]} Nd3 {[%emt 0:00:22]} 39. Rg1 {[%emt 0:03:34]} Be4 {[%emt 0:00:47]} 40. Nf6 {[%emt 0:02:57]} Bf3 {[%emt 0:05:13]} 41. Kb1 {[%emt 0:01:04]} Be2 {[%emt 0:01:24]} 42. Kc2 {[%emt 0:01:29]} Nb2 {[%emt 0:00:46]} 43. Kd2 {[%emt 0:00:58]} Bf3 {[%emt 0:00:56]} 44. Rg3 {[%emt 0:03:49]} Bd1 {[%emt 0:02:19]} 45. f4 {[%emt 0:00:28]} Bxb3 {[%emt 0:01:43]} 46. axb3 a2 {[%emt 0:02:33]} 1-0

[Event "7. Arber-Senioren-Cup 2019"]
[Site "Bodenmais"]
[Date "2019.08.02"]
[Round "7.26"]
[White "Riedl, Maximilian"]
[Black "Berger, Siegfried"]
[Result "1-0"]
[ECO "C30"]
[WhiteElo "1905"]
[BlackElo "1548"]
[Annotator "NA"]
[PlyCount "45"]
[EventDate "2019.07.27"]
[EventType "swiss"]
[EventCountry "GER"]
[SourceTitle "playchess.com"]
[Source "ChessBase"]
[SourceQuality "1"]
[TimeControl "60/7800+30:0"]

1. e4 {[%emt 0:00:00]} e5 {[%emt 0:00:00]} 2. f4 {[%emt 0:00:00]} Nc6 {[%emt 0:02:20]} 3. Nf3 {[%emt 0:00:00]} d6 {[%emt 0:01:35]} 4. Bc4 {[%emt 0:00:59]} h6 {[%emt 0:00:43]} 5. fxe5 {[%emt 0:00:48]} dxe5 {[%emt 0:00:41]} 6. O-O {[%emt 0:02:47]} Bc5+ {[%emt 0:01:58]} 7. d4 {[%emt 0:02:22]} exd4 {[%emt 0:01:43]} 8. Bxf7+ {[%emt 0:00:20]} Ke7 {[%emt 0:01:52]} 9. Bxg8 {[%emt 0:03:52]} Rxg8 {[%emt 0:03:33]} 10. b4 {[%emt 0:01:03]} Bb6 {[%emt 0:01:55]} 11. b5 {[%emt 0:00:22]} d3+ {[%emt 0:01:19]} 12. Kh1 {[%emt 0:00:14]} Nd4 {[%emt 0:04:25]} 13. Ba3+ {[%emt 0:01:01]} Ke8 {[%emt 0:01:32]} 14. Nxd4 {[%emt 0:02:22]} Qxd4 {[%emt 0:08:56]} 15. c3 {[%emt 0:01:32]} Qe5 {[%emt 0:02:24]} 16. Nd2 {[%emt 0:01:24]} Qxc3 {[%emt 0:07:36]} 17. Qh5+ {[%emt 0:06:17]} g6 {[%emt 0:00:32]} 18. Qd5 {[%emt 0:00:13]} Qg7 {[%emt 0:03:08]} 19. Bb2 Qxb2 {[%emt 0:09:11]} 20. Qxg8+ {[%emt 0:00:41]} Ke7 {[%emt 0:00:38]} 21. Qf7+ {[%emt 0:04:18]} Kd8 {[%emt 0:02:33]} 22. Qf8+ {[%emt 0:00:11]} Kd7 {[%emt 0:00:26]} 23. Rf7+ {[%emt 0:00:23] Ke8 Nb1#} 1-0

[Event "7. Arber-Senioren-Cup 2019"]
[Site "Bodenmais"]
[Date "2019.08.02"]
[Round "7.27"]
[White "Wolff, Peter"]
[Black "Glatz, Volker"]
[Result "1-0"]
[ECO "A20"]
[WhiteElo "1915"]
[BlackElo "1515"]
[Annotator "NA"]
[PlyCount "57"]
[EventDate "2019.07.27"]
[EventType "swiss"]
[EventCountry "GER"]
[SourceTitle "playchess.com"]
[Source "ChessBase"]
[SourceQuality "1"]
[TimeControl "60/7800+30:0"]

1. c4 {[%emt 0:00:00]} e5 {[%emt 0:00:00]} 2. g3 {[%emt 0:00:00]} Bc5 {[%emt 0:00:59]} 3. Bg2 {[%emt 0:00:00]} c6 {[%emt 0:00:59]} 4. Nc3 {[%emt 0:00:28]} Nf6 {[%emt 0:00:49]} 5. e3 {[%emt 0:00:58]} O-O {[%emt 0:00:18]} 6. Nge2 {[%emt 0:00:15]} d5 {[%emt 0:00:50]} 7. cxd5 {[%emt 0:04:15]} cxd5 {[%emt 0:00:20]} 8. d4 {[%emt 0:00:52]} exd4 {[%emt 0:00:49]} 9. Nxd4 {[%emt 0:00:40]} Bxd4 {[%emt 0:00:29]} 10. Qxd4 {[%emt 0:00:50]} Nc6 {[%emt 0:00:15]} 11. Qa4 {[%emt 0:03:52]} a6 {[%emt 0:02:00]} 12. O-O {[%emt 0:00:17]} Bd7 {[%emt 0:00:13]} 13. Nxd5 {[%emt 0:03:44]} Nxd5 {[%emt 0:01:57]} 14. Bxd5 {[%emt 0:00:13]} Ne7 {[%emt 0:01:51]} 15. Qb3 {[%emt 0:02:03]} Nxd5 {[%emt 0:00:47]} 16. Qxd5 {[%emt 0:00:06]} Qc7 {[%emt 0:02:28]} 17. Bd2 {[%emt 0:05:41]} Bc6 {[%emt 0:02:35]} 18. Qf5 {[%emt 0:02:42]} Rad8 {[%emt 0:04:12]} 19. Bc3 {[%emt 0:01:04]} Rd5 {[%emt 0:00:50]} 20. Qg4 {[%emt 0:02:34]} f6 {[%emt 0:00:34]} 21. Rad1 {[%emt 0:00:56]} Qe7 {[%emt 0:11:57]} 22. Bb4 {[%emt 0:01:52]} Qd8 {[%emt 0:06:46]} 23. Bxf8 {[%emt 0:01:17]} Kxf8 {[%emt 0:01:47]} 24. Qb4+ {[%emt 0:05:58]} Kf7 {[%emt 0:01:07]} 25. Qb3 {[%emt 0:03:52]} Kf8 {[%emt 0:02:02]} 26. Rxd5 {[%emt 0:05:31]} Bxd5 {[%emt 0:00:20]} 27. Qd3 {[%emt 0:00:42]} Ke7 {[%emt 0:03:52]} 28. Rd1 {[%emt 0:00:25]} Ke6 {[%emt 0:00:34]} 29. e4 {[%emt 0:00:46]} 1-0

[Event "7. Arber-Senioren-Cup 2019"]
[Site "Bodenmais"]
[Date "2019.08.03"]
[Round "8.3"]
[White "Kurka, Dieter"]
[Black "Koehler, Gerhard, Dr."]
[Result "0-1"]
[ECO "A45"]
[WhiteElo "2006"]
[BlackElo "2197"]
[Annotator "NA"]
[PlyCount "52"]
[EventDate "2019.07.27"]
[EventType "swiss"]
[EventCountry "GER"]
[SourceTitle "playchess.com"]
[Source "ChessBase"]
[SourceQuality "1"]
[TimeControl "5400+30"]

1. d4 {[%emt 0:00:00]} Nf6 {[%emt 0:00:00]} 2. Bf4 {[%emt 0:00:00]} Nh5 {[%emt 0:00:00]} 3. Bd2 {[%emt 0:00:00]} g6 {[%emt 0:00:00]} 4. e4 {[%emt 0:00:00]} d6 {[%emt 0:00:00]} 5. Be2 {[%emt 0:00:00]} Nf6 {[%emt 0:00:00]} 6. Nc3 {[%emt 0:00:00]} Bg7 {[%emt 0:00:00]} 7. h4 {[%emt 0:00:00]} h5 {[%emt 0:00:00]} 8. Nf3 {[%emt 0:00:00]} Bg4 {[%emt 0:00:00]} 9. Ng5 {[%emt 0:00:00]} Nc6 {[%emt 0:00:00]} 10. f3 {[%emt 0:00:00]} Bd7 {[%emt 0:00:00]} 11. Be3 {[%emt 0:00:00]} e5 {[%emt 0:00:00]} 12. Bc4 {[%emt 0:00:00]} O-O {[%emt 0:00:00]} 13. dxe5 Nxe5 {[%emt 0:02:48]} 14. Bb3 {[%emt 0:00:00]} Qe7 {[%emt 0:02:03]} 15. Qd2 {[%emt 0:00:00]} b5 {[%emt 0:02:44]} 16. Qe2 {[%emt 0:00:00]} c6 {[%emt 0:04:02]} 17. a3 {[%emt 0:01:05]} a6 {[%emt 0:02:20]} 18. Rd1 {[%emt 0:01:48]} Bc8 {[%emt 0:18:41]} 19. O-O {[%emt 0:10:02]} Bb7 {[%emt 0:05:27]} 20. Rfe1 {[%emt 0:02:01]} Rad8 {[%emt 0:07:13]} 21. f4 {[%emt 0:16:19]} Neg4 {[%emt 0:02:46]} 22. Bb6 {[%emt 0:00:20]} Rd7 {[%emt 0:04:06]} 23. e5 {[%emt 0:04:29]} dxe5 {[%emt 0:01:54]} 24. fxe5 {[%emt 0:00:07]} Rxd1 {[%emt 0:00:20]} 25. Nxd1 {[%emt 0:00:06]} Nd5 {[%emt 0:01:09]} 26. c4 {[%emt 0:04:33]} Nxb6 0-1

[Event "7. Arber-Senioren-Cup 2019"]
[Site "Bodenmais"]
[Date "2019.08.03"]
[Round "8.4"]
[White "Herbold, Manfred"]
[Black "Greul, Hans"]
[Result "0-1"]
[ECO "A00"]
[WhiteElo "2081"]
[BlackElo "2009"]
[Annotator "NA"]
[PlyCount "90"]
[EventDate "2019.07.27"]
[EventType "swiss"]
[EventCountry "GER"]
[SourceTitle "playchess.com"]
[Source "ChessBase"]
[SourceQuality "1"]
[TimeControl "5400+30"]

1. g3 {[%emt 0:00:00]} d5 {[%emt 0:00:00]} 2. Bg2 {[%emt 0:00:00]} Nf6 {[%emt 0:00:00]} 3. c4 {[%emt 0:00:00]} e6 {[%emt 0:00:00]} 4. b3 {[%emt 0:00:00]} Be7 {[%emt 0:00:00]} 5. Bb2 {[%emt 0:00:00]} O-O {[%emt 0:00:00]} 6. Nf3 {[%emt 0:00:00]} c5 {[%emt 0:00:00]} 7. Qc2 {[%emt 0:00:00]} Nc6 {[%emt 0:00:00]} 8. a3 {[%emt 0:00:00]} b6 {[%emt 0:00:00]} 9. e3 {[%emt 0:00:00]} Bb7 {[%emt 0:00:00]} 10. O-O {[%emt 0:00:00]} Rc8 {[%emt 0:00:00]} 11. d3 {[%emt 0:00:00]} Qd6 {[%emt 0:00:00]} 12. e4 {[%emt 0:00:00]} dxe4 {[%emt 0:00:00]} 13. dxe4 {[%emt 0:00:00]} e5 {[%emt 0:00:00]} 14. Nc3 {[%emt 0:00:00]} Nd4 {[%emt 0:00:29]} 15. Nxd4 {[%emt 0:05:14]} cxd4 {[%emt 0:00:12]} 16. Nb5 {[%emt 0:01:34]} Qb8 {[%emt 0:00:21]} 17. a4 {[%emt 0:00:52]} a6 {[%emt 0:03:43]} 18. Ba3 {[%emt 0:03:02]} Bxa3 {[%emt 0:03:47]} 19. Nxa3 {[%emt 0:05:57]} Rfd8 {[%emt 0:00:13]} 20. Rfd1 {[%emt 0:05:42]} Qd6 {[%emt 0:03:04]} 21. f3 {[%emt 0:03:56]} Rc7 {[%emt 0:11:56]} 22. Bh3 {[%emt 0:01:00]} Bc8 {[%emt 0:03:16]} 23. Bf1 {[%emt 0:03:22]} Qb4 {[%emt 0:03:03]} 24. Qd3 {[%emt 0:01:58]} Nd7 {[%emt 0:07:11]} 25. Nc2 {[%emt 0:00:48]} Qd6 {[%emt 0:00:13]} 26. Ne1 {[%emt 0:00:55]} Nc5 {[%emt 0:00:29]} 27. Qb1 {[%emt 0:00:43]} a5 {[%emt 0:04:13]} 28. Ra2 {[%emt 0:03:29]} Qh6 {[%emt 0:01:53]} 29. Nd3 {[%emt 0:03:48]} Qe3+ {[%emt 0:00:47]} 30. Rf2 {[%emt 0:01:49]} f6 {[%emt 0:04:36]} 31. f4 {[%emt 0:03:52]} Nxe4 {[%emt 0:06:27]} 32. Re1 {[%emt 0:02:23]} Nxf2 {[%emt 0:00:22]} 33. Rxe3 {[%emt 0:00:19]} dxe3 {[%emt 0:00:08]} 34. Nxf2 {[%emt 0:02:53]} exf2+ {[%emt 0:00:07]} 35. Kxf2 {[%emt 0:00:11]} exf4 {[%emt 0:01:34]} 36. gxf4 {[%emt 0:00:18]} Rd2+ {[%emt 0:02:25]} 37. Kg3 {[%emt 0:01:16]} Re7 {[%emt 0:00:54]} 38. f5 {[%emt 0:01:13]} Re3+ {[%emt 0:01:42]} 39. Kf4 {[%emt 0:02:57]} Re5 {[%emt 0:00:15]} 40. c5 {[%emt 0:01:28]} Rd4+ {[%emt 0:00:37]} 41. Kg3 {[%emt 0:00:42]} Bxf5 {[%emt 0:01:40]} 42. Qc1 {[%emt 0:00:47]} Rxc5 {[%emt 0:02:11]} 43. Bc4+ {[%emt 0:00:15]} Kf8 {[%emt 0:00:19]} 44. h3 {[%emt 0:03:47]} Rd3+ {[%emt 0:03:17]} 45. Kf4 {[%emt 0:02:06]} g5# {[%emt 0:00:39]} 0-1

[Event "7. Arber-Senioren-Cup 2019"]
[Site "Bodenmais"]
[Date "2019.08.03"]
[Round "8.5"]
[White "Godoj, Veit"]
[Black "Steinbach, Peter"]
[Result "1-0"]
[ECO "A45"]
[WhiteElo "1995"]
[BlackElo "1958"]
[Annotator "NA"]
[PlyCount "69"]
[EventDate "2019.07.27"]
[EventType "swiss"]
[EventCountry "GER"]
[SourceTitle "playchess.com"]
[Source "ChessBase"]
[SourceQuality "1"]
[TimeControl "5400+30"]

1. d4 {[%emt 0:00:00]} Nf6 {[%emt 0:00:00]} 2. Nc3 {[%emt 0:00:00]} d5 {[%emt 0:00:00]} 3. Nf3 {[%emt 0:00:00]} Nbd7 {[%emt 0:00:00]} 4. Bf4 {[%emt 0:00:00]} e6 {[%emt 0:00:00]} 5. a3 {[%emt 0:00:00]} a6 {[%emt 0:00:00]} 6. e3 {[%emt 0:00:00]} c5 {[%emt 0:00:00]} 7. Be2 {[%emt 0:00:00]} Be7 {[%emt 0:00:00]} 8. h3 {[%emt 0:00:00]} b5 {[%emt 0:00:00]} 9. O-O {[%emt 0:00:00]} Bb7 {[%emt 0:00:00]} 10. Ne5 {[%emt 0:00:00]} Nxe5 {[%emt 0:12:24]} 11. Bxe5 {[%emt 0:00:00]} Nd7 {[%emt 0:00:18]} 12. Bxg7 {[%emt 0:00:00]} Rg8 {[%emt 0:00:05]} 13. Bh6 {[%emt 0:00:00]} Bg5 {[%emt 0:07:00]} 14. Bxg5 {[%emt 0:00:00]} Qxg5 {[%emt 0:00:01]} 15. Bf3 {[%emt 0:00:00]} Rd8 {[%emt 0:09:45]} 16. Ne2 {[%emt 0:11:35]} e5 {[%emt 0:06:22]} 17. dxe5 {[%emt 0:01:18]} Nxe5 {[%emt 0:00:34]} 18. Nf4 {[%emt 0:00:01]} Rd7 {[%emt 0:01:52]} 19. Re1 {[%emt 0:12:44]} Kd8 {[%emt 0:06:03]} 20. Kh2 {[%emt 0:05:39]} Kc7 {[%emt 0:04:06]} 21. b4 {[%emt 0:06:15]} c4 {[%emt 0:19:06]} 22. Qd4 {[%emt 0:02:57]} Kb8 {[%emt 0:10:27]} 23. a4 {[%emt 0:00:20]} Nxf3+ {[%emt 0:04:01]} 24. gxf3 {[%emt 0:00:02]} Qh4 {[%emt 0:00:11]} 25. Re2 {[%emt 0:02:26]} f6 {[%emt 0:14:25]} 26. axb5 {[%emt 0:09:14]} axb5 {[%emt 0:00:13]} 27. c3 {[%emt 0:01:41]} Rdg7 {[%emt 0:01:45]} 28. Rea2 {[%emt 0:03:10]} Rg3 {[%emt 0:03:57]} 29. Qa7+ {[%emt 0:00:22]} Kc8 {[%emt 0:00:09]} 30. Qc5+ {[%emt 0:00:23]} Kb8 {[%emt 0:00:40]} 31. Qd6+ {[%emt 0:00:02]} Kc8 {[%emt 0:00:06]} 32. Ra8+ {[%emt 0:00:39]} Bxa8 {[%emt 0:00:02]} 33. Rxa8+ {[%emt 0:00:08]} Kb7 {[%emt 0:00:03]} 34. Qa6+ {[%emt 0:00:04]} Kc7 {[%emt 0:00:03]} 35. Ra7+ {[%emt 0:00:09]} 1-0

[Event "7. Arber-Senioren-Cup 2019"]
[Site "Bodenmais"]
[Date "2019.08.03"]
[Round "8.6"]
[White "Meckel, Helmut"]
[Black "Oberhofer, Max"]
[Result "1-0"]
[ECO "A00"]
[WhiteElo "1804"]
[BlackElo "2187"]
[Annotator "NA"]
[PlyCount "79"]
[EventDate "2019.07.27"]
[EventType "swiss"]
[EventCountry "GER"]
[SourceTitle "playchess.com"]
[Source "ChessBase"]
[SourceQuality "1"]
[TimeControl "5400+30"]

1. b4 {[%emt 0:00:00]} d5 {[%emt 0:00:00]} 2. Nf3 {[%emt 0:00:00]} Nf6 {[%emt 0:00:00]} 3. Bb2 {[%emt 0:00:00]} e6 {[%emt 0:00:00]} 4. b5 {[%emt 0:00:00]} c5 {[%emt 0:00:00]} 5. e3 {[%emt 0:00:00]} Be7 {[%emt 0:00:00]} 6. c4 {[%emt 0:00:00]} b6 {[%emt 0:00:00]} 7. Be2 {[%emt 0:00:00]} Bb7 {[%emt 0:00:00]} 8. a4 {[%emt 0:00:00]} a5 {[%emt 0:00:00]} 9. Ne5 {[%emt 0:00:00]} Qc7 {[%emt 0:00:00]} 10. f4 {[%emt 0:00:00]} Nbd7 {[%emt 0:00:00]} 11. O-O {[%emt 0:00:00]} Bd6 {[%emt 0:00:00]} 12. d4 {[%emt 0:00:00]} cxd4 {[%emt 0:00:00]} 13. exd4 {[%emt 0:00:00]} dxc4 {[%emt 0:00:00]} 14. Qc1 {[%emt 0:00:00]} Rc8 {[%emt 0:00:00]} 15. Nxc4 {[%emt 0:00:00]} O-O {[%emt 0:04:18]} 16. Qe3 {[%emt 0:05:48]} Nd5 {[%emt 0:03:16]} 17. Qf2 {[%emt 0:09:18]} Bxf4 {[%emt 0:03:44]} 18. Ba3 {[%emt 0:03:52]} Bxh2+ {[%emt 0:02:58]} 19. Kh1 {[%emt 0:00:25]} Bg3 {[%emt 0:01:53]} 20. Qf3 {[%emt 0:05:58]} N5f6 {[%emt 0:03:28]} 21. Qe3 {[%emt 0:02:28]} Rfe8 {[%emt 0:03:03]} 22. Nbd2 {[%emt 0:03:59]} Nd5 {[%emt 0:07:33]} 23. Qb3 {[%emt 0:03:50]} Bf4 {[%emt 0:06:45]} 24. Ne4 {[%emt 0:05:08]} Ba8 {[%emt 0:23:54]} 25. Bd6 {[%emt 0:05:59]} Bxd6 {[%emt 0:02:01]} 26. Nexd6 {[%emt 0:00:20]} Rf8 {[%emt 0:00:37]} 27. Nxc8 {[%emt 0:01:17]} Rxc8 {[%emt 0:06:13]} 28. Rac1 {[%emt 0:03:36]} Qd8 {[%emt 0:09:41]} 29. Qh3 {[%emt 0:09:27]} Qg5 {[%emt 0:01:01]} 30. Qh5 {[%emt 0:10:34]} Qxh5+ {[%emt 0:00:38]} 31. Bxh5 {[%emt 0:00:07]} g6 {[%emt 0:01:55]} 32. Ne5 {[%emt 0:04:14]} Rxc1 {[%emt 0:04:03]} 33. Rxc1 {[%emt 0:00:12]} Nf8 {[%emt 0:05:24]} 34. Rc8 {[%emt 0:01:20]} Bb7 {[%emt 0:00:12]} 35. Rb8 {[%emt 0:00:07]} gxh5 {[%emt 0:02:42]} 36. Rxb7 {[%emt 0:03:54]} Ng6 {[%emt 0:00:11]} 37. Nd7 {[%emt 0:00:57]} Ngf4 {[%emt 0:01:10]} 38. Nxb6 {[%emt 0:01:14]} Nc3 {[%emt 0:00:20]} 39. Nd7 {[%emt 0:02:29]} Nxa4 {[%emt 0:00:20]} 40. b6 1-0